bitfinex-derivatives/quotes_ETHF0:USTF0_20260112
["timestamp","ask_amount","ask_price","bid_price","bid_amount"]
[1768219359071,3.46323378,3117.3,3116.5,2.85248057]
[1768219359671,3.46323378,3117.3,3116.5,3.01312057]
[1768219361772,3.46323378,3117.3,3116.5,1.77564]
[1768219365080,3.46323378,3117.3,3115.4,4.00478229]
[1768219365272,2.30997426,3118.2,3116.0,0.16066]
[1768219365273,3.56773268,3116.7,3116.0,0.16066]
[1768219389690,3.56773268,3116.7,3116.1,0.16066]
[1768219389989,3.29451962,3117.7,3116.3,0.16065]
[1768219390185,3.29451962,3117.5,3116.3,0.16065]
[1768219390382,3.29451962,3117.3,3116.3,0.16065]
[1768219390590,0.91145174,3117.2,3116.3,1.77065]
[1768219390887,4.20597136,3117.2,3116.3,1.77065]
[1768219391088,4.20597136,3117.1,3116.3,1.77065]
[1768219391289,3.29451962,3117.1,3116.3,1.77065]
[1768219392288,3.51929912,3116.9,3116.3,1.77065]
[1768219400814,3.51929912,3116.9,3115.5,20.4]
[1768219401109,3.51929912,3116.9,3115.8,0.16067]
[1768219403921,3.51929912,3116.9,3115.9,0.16067]
[1768219404104,3.51929912,3116.9,3116.0,1.62]
[1768219404616,3.51929912,3116.7,3116.0,1.62]
[1768219405607,3.51929912,3116.7,3115.9,0.16067]
[1768219405814,3.51929912,3116.7,3115.9,1.78067]
[1768219406312,3.51929912,3116.7,3115.4,0.00322122]
[1768219406616,3.51929912,3116.7,3115.9,0.16067]
[1768219412016,3.51929912,3116.7,3115.7,1.62]
[1768219412722,3.51929912,3116.7,3115.9,0.16067]
[1768219425521,2.47055426,3117.6,3115.9,0.16067]
[1768219425826,3.34748513,3117.4,3115.9,0.16067]
[1768219426022,0.91139015,3117.3,3115.9,0.16067]
[1768219426324,3.34748513,3117.1,3115.9,0.16067]
[1768219426622,4.25887528,3117.0,3115.9,0.16067]
[1768219426810,0.91139015,3116.9,3115.9,0.16067]
[1768219427217,3.34748513,3116.8,3115.9,0.16067]
[1768219427417,3.34748513,3116.8,3115.9,1.77867]
[1768219427619,0.9114966,3116.7,3115.9,1.77867]
[1768219427825,3.34748513,3116.8,3115.9,1.77867]
[1768219428025,0.91149552,3116.7,3115.9,1.77867]
[1768219428223,3.34748513,3116.8,3115.9,1.77867]
[1768219428426,0.91155317,3116.7,3115.9,1.77867]
[1768219428625,3.34748513,3116.8,3115.9,1.77867]
[1768219428826,0.91155247,3116.7,3115.9,1.77867]
[1768219429124,3.34748513,3116.8,3115.9,1.77867]
[1768219429329,0.91162626,3116.7,3115.9,1.77867]
[1768219429515,3.34748513,3116.8,3115.9,1.77867]
[1768219430527,3.34748513,3117.5,3116.2,1.23780212]
[1768219430729,3.34748513,3117.3,3116.0,1.23780212]
[1768219430927,3.34748513,3117.1,3116.0,1.23780212]
[1768219431227,0.91165811,3117.0,3116.0,1.23780212]
[1768219431624,0.91165811,3117.0,3116.2,0.16066]
[1768219434624,0.91165811,3117.0,3116.4,1.23780212]
[1768219434829,3.34748513,3117.5,3116.4,1.23780212]
[1768219435024,0.91199939,3117.4,3116.4,1.23780212]
[1768219435330,0.91199939,3117.3,3116.4,1.23780212]
[1768219435629,0.91199939,3117.2,3116.4,1.23780212]
[1768219435828,0.91199939,3117.1,3116.4,1.23780212]
[1768219436129,0.91199939,3117.0,3116.4,1.23780212]
[1768219436427,3.34748513,3117.5,3116.4,1.23780212]
[1768219436622,0.91169401,3117.4,3116.6,1.23780212]
[1768219436929,0.91169401,3117.3,3116.8,1.23780212]
[1768219437125,0.91169401,3117.2,3116.8,1.23780212]
[1768219437325,3.34748513,3117.5,3116.6,1.23780212]
[1768219437525,0.91077861,3117.4,3116.6,1.23780212]
[1768219437829,0.91077861,3117.3,3116.6,1.23780212]
[1768219438019,3.34748513,3117.5,3116.6,1.23780212]
[1768219438224,0.91051641,3117.4,3117.0,1.23780212]
[1768219438523,3.34748513,3117.9,3117.0,1.23780212]
[1768219438729,0.91043032,3117.8,3117.0,1.23780212]
[1768219438926,0.91043032,3117.7,3117.0,1.23780212]
[1768219439126,0.91043032,3117.6,3117.0,1.23780212]
[1768219439328,3.34748513,3117.9,3117.0,1.23780212]
[1768219439530,0.90996585,3117.8,3117.0,1.23780212]
[1768219439827,0.90996585,3117.7,3117.0,1.23780212]
[1768219440028,0.90996585,3117.6,3117.0,1.23780212]
[1768219440227,3.34748513,3117.9,3117.0,1.23780212]
[1768219440430,4.25711689,3117.8,3116.8,1.23780212]
[1768219440725,0.90963176,3117.7,3116.8,1.23780212]
[1768219442630,3.34748513,3117.8,3116.8,1.23780212]
[1768219443439,3.34748513,3117.8,3116.7,0.16063]
[1768219448947,3.34748513,3117.8,3116.9,0.16062]
[1768219449741,3.49351157,3118.2,3117.0,1.23780212]
[1768219449929,0.90809129,3118.1,3117.0,1.23780212]
[1768219450125,0.90809129,3118.0,3117.0,1.39841212]
[1768219450324,3.49351157,3118.2,3117.2,1.23780212]
[1768219450527,0.90799952,3118.1,3117.2,1.23780212]
[1768219450740,0.90799952,3118.0,3117.2,1.23780212]
[1768219450937,3.49351157,3118.2,3117.2,1.23780212]
[1768219451142,0.90798282,3118.1,3117.2,1.23780212]
[1768219451441,3.49351157,3118.2,3117.2,1.23780212]
[1768219451637,0.90791199,3118.1,3117.2,1.23780212]
[1768219451938,3.49351157,3118.2,3117.2,1.23780212]
[1768219452236,0.90787162,3118.1,3117.2,1.39840212]
[1768219452441,3.49351157,3118.2,3117.3,1.23780212]
[1768219452735,3.49351157,3118.2,3117.3,1.39840212]
[1768219453139,3.49351157,3118.2,3117.3,0.1606]
[1768219457745,3.49351157,3118.2,3117.3,1.39840212]
[1768219457950,3.49351157,3118.2,3117.5,1.23780212]
[1768219459248,3.49351157,3118.2,3117.3,1.39840212]
[1768219460047,4.6161362,3118.6,3117.3,1.39840212]
[1768219460249,0.90790984,3118.5,3117.5,1.23780212]
[1768219460438,0.00256988,3118.6,3117.9,1.23780212]
[1768219460640,3.3757642,3119.0,3117.9,1.23780212]
[1768219460951,3.3757642,3119.0,3118.1,1.23780212]
[1768219461143,3.3757642,3119.0,3117.9,1.23780212]
[1768219461551,3.3757642,3119.0,3118.0,0.16056]
[1768219461850,0.00238577,3119.0,3118.1,1.39836212]
[1768219463542,1.23780212,3119.7,3118.5,1.23780212]
[1768219463741,0.90666669,3119.6,3118.5,1.23780212]
[1768219463940,0.90666669,3119.5,3118.4,1.39834212]
[1768219464253,3.3757642,3119.7,3118.6,1.23780212]
[1768219464456,0.90641436,3119.6,3118.8,1.23780212]
[1768219464751,1.24079078,3119.7,3118.7,1.611]
[1768219465450,0.00298866,3119.7,3118.7,1.611]
[1768219465749,0.00298866,3119.7,3118.9,0.16052]
[1768219466253,0.00298866,3119.7,3118.9,1.39832212]
[1768219470258,0.00298866,3119.7,3118.9,0.16052]
[1768219470858,0.00298866,3119.7,3118.9,1.77052]
[1768219471056,1.23780212,3119.6,3118.9,1.77052]
[1768219471353,0.00298866,3119.7,3118.9,1.77052]
[1768219475556,0.00298866,3119.7,3119.1,1.23780212]
[1768219476358,6.392,3121.1,3118.9,1.61]
[1768219476359,1.23780212,3120.6,3119.3,1.23780212]
[1768219476558,0.90221395,3120.5,3119.3,1.23780212]
[1768219476759,1.23780212,3120.6,3119.3,1.23780212]
[1768219477157,1.23780212,3120.6,3119.3,1.39829212]
[1768219477359,3.18125703,3120.3,3119.3,0.16049]
[1768219477556,1.23780212,3119.8,3118.8,3.21]
[1768219477867,1.23780212,3119.8,3118.9,1.609]
[1768219478062,3.18125703,3120.2,3119.0,1.609]
[1768219478258,1.23780212,3119.9,3119.0,1.609]
[1768219478567,1.23780212,3120.1,3119.0,1.609]
[1768219479674,1.23780212,3119.9,3119.0,1.609]
[1768219485286,4.41905915,3120.1,3119.0,1.609]
[1768219485477,3.18125703,3120.1,3119.0,2.84680212]
[1768219485782,4.41905915,3120.5,3119.2,1.23780212]
[1768219485972,0.90390055,3120.4,3119.4,1.23780212]
[1768219486286,0.00263358,3120.6,3119.4,1.23780212]
[1768219486481,0.90423262,3120.5,3119.3,0.16049]
[1768219486677,1.23780212,3120.5,3119.3,0.16049]
[1768219487285,0.90468043,3120.4,3119.3,0.16049]
[1768219487491,1.23780212,3120.5,3119.3,0.16049]
[1768219487785,0.90468058,3120.4,3119.3,0.16049]
[1768219487985,1.23780212,3120.5,3119.3,0.16049]
[1768219488189,0.90468048,3120.4,3119.3,0.16049]
[1768219488381,1.23780212,3120.5,3119.3,0.16049]
[1768219488686,0.90527339,3120.4,3119.3,0.16049]
[1768219488874,1.23780212,3120.5,3119.3,0.16049]
[1768219489074,0.90527339,3120.4,3119.3,0.16049]
[1768219489277,0.90527339,3120.3,3119.3,0.16049]
[1768219489481,1.23780212,3120.5,3119.3,0.16049]
[1768219489690,0.90594423,3120.4,3119.3,0.16049]
[1768219489877,0.90594423,3120.3,3119.3,0.16049]
[1768219490073,0.00263358,3120.6,3119.3,0.16049]
[1768219490279,0.90687774,3120.5,3119.4,1.23780212]
[1768219490581,0.90687774,3120.4,3119.4,1.23780212]
[1768219490882,0.90687774,3120.3,3119.6,1.23780212]
[1768219491186,0.00263358,3120.6,3119.6,1.23780212]
[1768219491386,0.90713718,3120.5,3119.3,3.36138846]
[1768219491585,0.90713718,3120.4,3119.3,3.36138846]
[1768219491785,0.90713718,3120.3,3119.4,0.16049]
[1768219491984,0.00263358,3120.6,3119.4,0.16049]
[1768219492186,0.90713715,3120.5,3119.4,3.36138846]
[1768219492383,0.90713715,3120.4,3119.4,3.36138846]
[1768219492582,0.90713715,3120.3,3119.4,3.36138846]
[1768219492784,0.00263358,3120.6,3119.4,3.36138846]
[1768219493079,0.90735526,3120.5,3119.4,3.36138846]
[1768219493274,0.90735526,3120.4,3119.4,3.36138846]
[1768219493474,0.90735526,3120.3,3119.4,3.36138846]
[1768219493687,0.00263358,3120.6,3119.4,3.36138846]
[1768219493986,0.90763214,3120.5,3119.4,3.36138846]
[1768219494187,0.90763214,3120.4,3119.4,3.36138846]
[1768219494383,0.90763214,3120.3,3119.4,3.36138846]
[1768219494584,0.00263358,3120.6,3119.4,3.36138846]
[1768219494791,0.90785805,3120.5,3119.5,0.16049]
[1768219495086,0.90785805,3120.4,3119.5,0.16049]
[1768219495287,0.00263358,3120.6,3119.5,0.16049]
[1768219495484,0.90780328,3120.5,3119.5,0.16049]
[1768219495689,0.90780328,3120.4,3119.5,0.16049]
[1768219495986,0.00263358,3120.6,3119.5,0.16049]
[1768219496192,0.90780319,3120.5,3119.5,0.16049]
[1768219496493,0.90780319,3120.4,3119.5,0.16049]
[1768219496682,0.00263358,3120.6,3119.5,0.16049]
[1768219496885,0.90773526,3120.5,3119.5,0.16049]
[1768219497086,0.90773526,3120.4,3119.5,0.16049]
[1768219497391,0.90773526,3120.3,3119.5,0.16049]
[1768219497595,0.00263358,3120.6,3119.5,0.16049]
[1768219497892,0.90903128,3120.5,3119.5,0.16049]
[1768219498090,0.90903128,3120.4,3119.5,0.16049]
[1768219498285,0.90903128,3120.3,3119.5,0.16049]
[1768219498595,0.00263358,3120.6,3119.5,0.16049]
[1768219498889,0.90900279,3120.5,3119.5,0.16049]
[1768219499193,0.90900279,3120.4,3119.5,0.16049]
[1768219499394,0.90900279,3120.3,3119.5,0.16049]
[1768219499690,0.00263358,3120.6,3119.5,0.16049]
[1768219499891,0.90899337,3120.5,3119.5,3.36138846]
[1768219500084,0.90899337,3120.4,3119.5,3.36138846]
[1768219500288,0.90899337,3120.3,3119.5,3.36138846]
[1768219500486,0.00263358,3120.6,3119.5,3.36138846]
[1768219500689,0.90897136,3120.5,3119.5,3.36138846]
[1768219500882,0.90897136,3120.4,3119.5,3.36138846]
[1768219501082,0.90897136,3120.3,3119.5,3.36138846]
[1768219501286,0.00263358,3120.6,3119.5,3.36138846]
[1768219501489,0.9089741,3120.5,3119.5,3.36138846]
[1768219501695,0.9089741,3120.4,3119.5,3.36138846]
[1768219501887,0.9089741,3120.3,3119.5,3.36138846]
[1768219502195,0.00263358,3120.6,3119.5,3.36138846]
[1768219502494,0.90900738,3120.5,3119.6,3.20089846]
[1768219502687,0.00263358,3120.6,3119.6,3.20089846]
[1768219502885,0.00263358,3120.6,3119.8,1.23491769]
[1768219503095,0.00263358,3120.6,3119.9,0.16046]
[1768219503592,0.85990727,3121.9,3120.5,3.36132846]
[1768219503792,0.90525589,3121.8,3120.6,0.16043]
[1768219503999,0.90525589,3121.7,3120.6,0.16043]
[1768219504197,0.90525589,3121.6,3120.6,0.16043]
[1768219504492,0.90525589,3121.5,3120.6,0.16417091]
[1768219504697,0.00299261,3121.6,3120.6,0.16417091]
[1768219504901,0.90441339,3121.5,3120.6,0.16417091]
[1768219505097,0.00299261,3121.6,3120.6,0.16417091]
[1768219505296,0.90444761,3121.5,3120.6,0.16417091]
[1768219505599,0.00299261,3121.6,3120.6,0.16417091]
[1768219506802,0.00299261,3121.6,3120.7,0.16042]
[1768219509107,3.1519858,3121.6,3120.6,0.00374091]
[1768219509309,3.1519858,3121.6,3120.6,1.60874091]
[1768219509509,3.1519858,3121.6,3120.6,0.00374091]
[1768219516498,0.00299261,3121.6,3120.6,0.00374091]
[1768219521518,0.00299261,3121.6,3120.6,0.16417091]
[1768219522016,0.00299261,3121.6,3120.6,3.25415803]
[1768219522320,0.00299261,3121.6,3120.9,0.16041]
[1768219531533,3.3601489,3122.9,3121.0,4.32490481]
[1768219531736,3.1998389,3122.7,3121.0,4.32490481]
[1768219532037,4.10404355,3122.6,3121.0,4.32490481]
[1768219532238,0.90420465,3122.5,3121.0,4.32490481]
[1768219532432,0.90420465,3122.4,3121.0,3.08998712]
[1768219532839,3.1998389,3122.3,3120.9,0.16041]
[1768219533135,4.10404355,3122.2,3120.9,0.16041]
[1768219533337,3.1998389,3122.2,3120.9,0.16041]
[1768219534842,0.90467382,3122.1,3120.9,0.16041]
[1768219535044,3.1998389,3122.2,3120.9,0.16041]
[1768219536843,0.00276539,3122.5,3121.0,3.37214756]
[1768219537145,0.90439638,3122.4,3121.0,3.37214756]
[1768219537344,0.90439638,3122.3,3121.0,3.37214756]
[1768219537645,0.90439638,3122.2,3121.0,3.37214756]
[1768219537844,0.00276539,3122.5,3121.1,0.1604]
[1768219538038,0.9042826,3122.4,3121.2,4.44665525]
[1768219538241,0.00276539,3122.5,3121.2,4.44665525]
[1768219538446,0.90407485,3122.4,3121.2,4.44665525]
[1768219538638,0.00276539,3122.5,3121.2,4.44665525]
[1768219538838,0.90407412,3122.4,3121.2,4.44665525]
[1768219539046,0.00276539,3122.5,3121.2,4.44665525]
[1768219539247,0.90407446,3122.4,3121.2,4.44665525]
[1768219539442,0.00276539,3122.5,3121.2,4.44665525]
[1768219539643,0.90394591,3122.4,3121.4,0.16038]
[1768219539843,0.00276539,3122.5,3121.4,0.16038]
[1768219540044,0.90394591,3122.4,3121.4,0.16038]
[1768219540238,0.00276539,3122.5,3121.4,0.16038]
[1768219540446,0.90386809,3122.4,3121.4,0.16038]
[1768219540645,0.00276539,3122.5,3121.4,0.16038]
[1768219540950,0.90386815,3122.4,3121.4,0.16038]
[1768219541154,0.00276539,3122.5,3121.4,0.16038]
[1768219541447,0.00276539,3122.5,3121.5,0.16038]
[1768219542345,0.00276539,3122.5,3121.3,3.21173756]
[1768219542846,2.98269351,3123.2,3122.0,0.16035]
[1768219543045,0.90363594,3123.1,3122.0,0.16035]
[1768219543244,0.90363594,3123.0,3122.0,0.16035]
[1768219543443,3.88632945,3122.9,3122.0,0.16035]
[1768219543638,2.98269351,3122.7,3121.4,0.16039]
[1768219543953,2.98269351,3122.5,3121.4,0.16039]
[1768219544245,3.88603344,3122.4,3121.4,0.16039]
[1768219544447,5.12095113,3122.3,3120.8,0.16042]
[1768219544748,2.98269351,3122.1,3120.8,0.16042]
[1768219544942,2.98269351,3121.9,3120.8,0.16042]
[1768219547450,2.98661724,3122.7,3120.9,3.37214756]
[1768219547754,2.98269351,3122.5,3120.9,3.37214756]
[1768219548056,3.88658912,3122.4,3120.9,3.37214756]
[1768219548344,0.90389561,3122.3,3120.9,3.37214756]
[1768219548552,0.90389561,3122.2,3120.9,3.37214756]
[1768219548752,0.90389561,3122.1,3120.9,3.37214756]
[1768219548952,0.90389561,3122.0,3120.9,3.37214756]
[1768219549148,2.98269351,3122.4,3120.9,3.37214756]
[1768219549351,0.90400186,3122.3,3120.9,3.37214756]
[1768219549649,0.90400186,3122.2,3120.9,3.37214756]
[1768219549851,0.90400186,3122.1,3120.9,3.37214756]
[1768219550058,0.90400186,3122.0,3120.9,3.37214756]
[1768219550259,2.98269351,3122.4,3120.9,3.37214756]
[1768219550553,0.90428665,3122.3,3120.9,3.37214756]
[1768219550757,2.98269351,3122.4,3120.9,3.37214756]
[1768219550758,0.90428665,3122.2,3120.9,3.37214756]
[1768219551050,0.90428665,3122.1,3120.9,3.37214756]
[1768219551251,0.90428665,3122.0,3120.9,3.37214756]
[1768219551438,4.216363,3122.4,3121.0,1.23366949]
[1768219551650,0.90446139,3122.3,3121.0,1.23366949]
[1768219551944,0.90446139,3122.2,3121.0,1.23366949]
[1768219552258,0.90446139,3122.1,3121.0,1.23366949]
[1768219552460,0.90446139,3122.0,3121.0,1.23366949]
[1768219552757,1.23366949,3122.0,3120.9,0.16041]
[1768219553062,2.98269351,3122.0,3120.9,0.16041]
[1768219553367,4.216363,3122.0,3120.9,0.16041]
[1768219554054,2.98269351,3121.9,3120.9,0.16041]
[1768219554957,1.23366949,3121.8,3120.7,1.601]
[1768219555256,0.9046217,3121.7,3120.7,1.601]
[1768219555854,0.9046217,3121.7,3120.6,0.00374091]
[1768219556059,4.216363,3121.4,3120.6,0.00374091]
[1768219556260,0.9046217,3121.3,3120.6,0.00374091]
[1768219556660,3.88731521,3121.3,3120.6,0.00374091]
[1768219556862,2.98269351,3121.3,3120.6,0.00374091]
[1768219557361,2.98269351,3121.3,3120.0,1.599]
[1768219557557,4.216363,3121.3,3120.0,2.83266949]
[1768219557856,2.98269351,3121.3,3120.2,1.23366949]
[1768219558048,2.98269351,3121.3,3120.1,1.23366949]
[1768219558247,2.98269351,3121.0,3120.0,1.599]
[1768219558452,1.23366949,3120.9,3120.0,0.00406083]
[1768219559153,2.98269351,3121.0,3120.0,0.00406083]
[1768219560464,1.23366949,3120.9,3120.0,0.00406083]
[1768219560660,4.216363,3120.9,3120.0,0.00406083]
[1768219561963,2.98269351,3120.8,3120.0,0.00406083]
[1768219562564,1.23366949,3120.7,3120.0,0.00406083]
[1768219562866,2.98269351,3120.4,3119.5,1.598]
[1768219563764,2.98519831,3120.4,3119.5,1.60057912]
[1768219564264,3.00349632,3120.3,3119.5,0.00257912]
[1768219564460,4.23716581,3120.2,3119.5,0.00257912]
[1768219564856,4.23716581,3120.2,3118.9,2.83066949]
[1768219565055,3.00349632,3120.2,3119.1,1.23366949]
[1768219565754,3.00349632,3120.2,3119.1,1.23678569]
[1768219566065,0.0025048,3120.4,3119.3,1.23366949]
[1768219567661,0.0025048,3120.4,3119.1,0.0031162]
[1768219567662,0.0025048,3120.4,3120.0,1.23366949]
[1768219567858,0.0025048,3120.4,3119.8,1.23366949]
[1768219570864,1.23617429,3120.4,3119.6,0.16048]
[1768219573373,0.0025048,3120.4,3119.2,1.23366949]
[1768219574272,1.23366949,3120.3,3119.1,0.0031162]
[1768219575361,0.0025048,3120.4,3119.2,1.23366949]
[1768219575567,1.23366949,3120.3,3119.1,0.0031162]
[1768219575769,1.23366949,3119.9,3119.1,0.0031162]
[1768219576168,4.24111577,3120.1,3119.1,0.0031162]
[1768219576575,3.00744628,3120.1,3119.1,0.0031162]
[1768219576775,0.0025048,3120.4,3119.1,1.23678569]
[1768219577077,0.0025048,3120.4,3119.3,1.23366949]
[1768219577277,0.0025048,3120.4,3119.5,1.23366949]
[1768219577574,0.0025048,3120.4,3119.3,1.23366949]
[1768219579672,0.0025048,3120.4,3119.1,0.0031162]
[1768219579673,0.0025048,3120.4,3119.5,1.23366949]
[1768219583576,0.0025048,3120.4,3119.3,0.16049]
[1768219584277,0.0025048,3120.4,3119.5,0.16048]
[1768219584475,0.0025048,3120.4,3119.1,0.0031162]
[1768219584476,3.00744628,3121.4,3120.2,1.23366949]
[1768219584786,0.9032001,3121.3,3120.4,1.23366949]
[1768219584975,0.9032001,3121.2,3120.2,1.23366949]
[1768219585177,0.9032001,3121.1,3120.2,1.23366949]
[1768219585371,0.9032001,3121.0,3120.2,1.23366949]
[1768219585673,0.9032001,3120.9,3120.2,1.23366949]
[1768219587384,0.9032001,3120.9,3119.7,3.23599276]
[1768219587385,0.9032001,3120.9,3120.0,1.23366949]
[1768219588590,0.9032001,3120.9,3119.7,3.23599276]
[1768219588885,0.9032001,3120.9,3119.9,1.23366949]
[1768219592791,0.9032001,3120.9,3119.7,1.75747]
[1768219592992,3.00744628,3120.7,3119.7,1.75747]
[1768219593182,0.9032001,3120.6,3119.7,1.75747]
[1768219595296,2.13686959,3120.6,3119.7,1.75747]
[1768219595593,0.9032001,3120.5,3119.7,1.75747]
[1768219595795,3.00744628,3120.7,3119.7,1.75747]
[1768219596095,0.90493738,3120.6,3119.7,0.16047]
[1768219596296,0.90493738,3120.5,3119.7,0.16047]
[1768219596493,3.00744628,3120.7,3119.7,0.16047]
[1768219596797,0.90498318,3120.6,3119.7,0.16047]
[1768219596995,0.90498318,3120.5,3119.7,0.16047]
[1768219597197,3.00744628,3120.7,3119.7,0.16047]
[1768219597395,0.90498366,3120.6,3119.7,0.16047]
[1768219597590,3.00744628,3120.7,3119.7,0.16047]
[1768219597791,0.90503719,3120.6,3119.7,0.16047]
[1768219597986,3.00744628,3120.7,3119.7,0.16047]
[1768219598202,0.90503719,3120.6,3119.7,0.16047]
[1768219598396,3.00744628,3120.7,3119.7,0.16047]
[1768219598597,0.90503724,3120.6,3119.7,0.16047]
[1768219598800,3.00744628,3120.7,3119.7,0.16047]
[1768219599002,0.90503708,3120.6,3119.7,0.16047]
[1768219599198,3.00744628,3120.7,3119.7,0.16047]
[1768219599505,0.90503708,3120.6,3119.7,0.16047]
[1768219599801,3.00744628,3120.7,3119.5,1.23366949]
[1768219600002,0.90503717,3120.6,3119.5,1.23366949]
[1768219600198,3.00744628,3120.7,3119.5,1.23366949]
[1768219600504,0.90503715,3120.6,3119.5,1.23366949]
[1768219600705,4.24111577,3120.7,3119.5,1.23366949]
[1768219600904,0.90503681,3120.6,3119.5,1.23366949]
[1768219601102,4.24111577,3120.7,3119.5,1.23366949]
[1768219601305,0.90503682,3120.6,3119.5,1.23366949]
[1768219601507,4.24111577,3120.7,3119.5,1.23366949]
[1768219601805,0.90503427,3120.6,3119.5,1.23366949]
[1768219602012,4.24111577,3120.7,3119.5,1.23366949]
[1768219602306,0.90503453,3120.6,3119.5,1.23366949]
[1768219602509,4.24111577,3120.7,3119.5,1.23366949]
[1768219602706,0.90504263,3120.6,3119.5,1.23366949]
[1768219602908,4.24111577,3120.7,3119.5,1.23366949]
[1768219603110,0.90504247,3120.6,3119.5,1.23366949]
[1768219603406,4.24111577,3120.7,3119.5,1.23366949]
[1768219603608,0.90505188,3120.6,3119.5,1.23366949]
[1768219603809,4.24111577,3120.7,3119.5,1.23366949]
[1768219604008,0.90505188,3120.6,3119.5,1.23366949]
[1768219604209,4.24111577,3120.7,3119.5,1.23366949]
[1768219604410,0.90505223,3120.6,3119.5,1.23366949]
[1768219604711,4.24111577,3120.7,3119.5,1.23366949]
[1768219604898,0.90508559,3120.6,3119.5,1.23366949]
[1768219605104,4.24111577,3120.7,3119.5,1.23366949]
[1768219605417,0.90508578,3120.6,3119.5,1.23366949]
[1768219605605,4.24111577,3120.7,3119.5,1.23366949]
[1768219605801,0.90512748,3120.6,3119.5,1.23366949]
[1768219606009,4.24111577,3120.7,3119.5,1.23366949]
[1768219606206,0.90515617,3120.6,3119.5,1.23366949]
[1768219606408,4.24111577,3120.7,3119.5,1.23366949]
[1768219606615,0.90533079,3120.6,3119.5,1.23366949]
[1768219606818,4.24111577,3120.7,3119.5,1.23366949]
[1768219607014,0.90532859,3120.6,3119.5,1.23366949]
[1768219607314,4.24111577,3120.7,3119.5,1.23366949]
[1768219607614,0.90547141,3120.6,3119.5,1.23366949]
[1768219607806,4.24111577,3120.7,3119.5,1.23366949]
[1768219608001,0.90547141,3120.6,3119.5,1.23366949]
[1768219608210,4.24111577,3120.7,3119.4,0.16049]
[1768219608410,0.90547196,3120.6,3119.4,0.16049]
[1768219608609,0.90547196,3120.5,3119.4,0.16049]
[1768219608805,4.24111577,3120.7,3119.4,0.16049]
[1768219609012,0.90563132,3120.6,3119.4,0.16049]
[1768219609311,0.90563132,3120.5,3119.4,0.16049]
[1768219609613,4.24111577,3120.7,3119.4,0.16049]
[1768219609813,1.23366949,3120.5,3119.4,0.16049]
[1768219613222,3.00744628,3120.7,3119.4,0.16049]
[1768219613418,0.90599436,3120.6,3119.4,0.16049]
[1768219613613,0.90599436,3120.5,3119.4,0.16049]
[1768219613819,3.00744628,3120.7,3119.4,0.16049]
[1768219614117,0.90606192,3120.6,3119.4,0.16049]
[1768219614418,0.90606192,3120.5,3119.4,0.16049]
[1768219614619,3.00744628,3120.7,3119.4,0.16049]
[1768219614818,0.90617043,3120.6,3119.4,0.16049]
[1768219615017,0.90617043,3120.5,3119.4,0.16049]
[1768219615224,3.00744628,3120.7,3119.4,0.16049]
[1768219615415,0.906145,3120.6,3119.4,0.16049]
[1768219615620,0.906145,3120.5,3119.4,0.16049]
[1768219615818,3.00744628,3120.7,3119.4,0.16049]
[1768219616115,0.90618426,3120.6,3119.4,0.16049]
[1768219616315,3.00744628,3120.7,3119.4,0.16049]
[1768219616316,0.90618426,3120.5,3119.4,0.16049]
[1768219616520,3.00744628,3120.7,3119.4,0.16049]
[1768219616817,0.90626187,3120.6,3119.4,3.34591808]
[1768219617012,0.90626187,3120.5,3119.4,3.34591808]
[1768219617207,3.19660133,3121.0,3119.4,3.34591808]
[1768219617413,4.09888758,3120.9,3119.4,3.34591808]
[1768219617610,0.90596099,3120.8,3119.4,3.34591808]
[1768219617815,0.90596099,3120.8,3119.5,0.16049]
[1768219618014,0.90596099,3120.8,3119.8,3.18542808]
[1768219618221,0.00367474,3121.0,3119.9,0.16046]
[1768219618416,0.9059765,3120.9,3120.0,0.16046]
[1768219618617,0.00367474,3121.0,3120.1,1.39554494]
[1768219618916,0.90592836,3120.9,3120.1,1.39554494]
[1768219619111,0.00367474,3121.0,3120.1,1.39554494]
[1768219619320,0.90593714,3120.9,3120.1,0.16045]
[1768219619524,0.90593714,3120.8,3120.1,0.16045]
[1768219619725,0.00367474,3121.0,3120.1,0.16045]
[1768219619922,0.90589673,3120.9,3120.1,0.16045]
[1768219620122,0.00367474,3121.0,3120.1,0.16045]
[1768219620322,0.90589272,3120.9,3120.1,0.16045]
[1768219620523,0.00367474,3121.0,3120.1,0.16045]
[1768219620725,0.90585307,3120.9,3120.1,0.16045]
[1768219620923,0.00367474,3121.0,3120.1,0.16045]
[1768219621123,0.00367474,3121.0,3120.3,0.16044]
[1768219622922,0.00367474,3121.0,3120.4,0.16044]
[1768219623224,3.19292659,3122.2,3120.5,4.42052302]
[1768219623526,0.90869251,3122.1,3120.8,0.16041]
[1768219623726,0.90869251,3122.0,3120.8,0.16041]
[1768219624022,0.90869251,3121.9,3120.9,1.39550494]
[1768219624229,0.00266518,3122.0,3120.9,0.16041]
[1768219624424,0.90784256,3121.9,3120.9,0.16041]
[1768219624624,0.00266518,3122.0,3120.9,0.16041]
[1768219624923,0.90780091,3121.9,3120.9,0.16041]
[1768219625123,0.00266518,3122.0,3120.9,0.16041]
[1768219625527,0.90726577,3121.9,3120.9,0.16041]
[1768219625830,0.00266518,3122.0,3120.9,0.16041]
[1768219627028,0.00266518,3122.0,3121.0,0.16041]
[1768219629425,0.00266518,3122.0,3121.1,0.1604]
[1768219629626,0.00266518,3122.0,3121.2,0.1604]
[1768219633032,0.00266518,3122.0,3120.9,2.92297152]
[1768219633430,0.00266518,3122.0,3120.7,0.16042]
[1768219633634,0.00266518,3122.0,3120.7,1.75742]
[1768219633831,2.91083498,3121.9,3120.7,1.75742]
[1768219634134,1.23509494,3121.6,3120.3,3.208]
[1768219634334,2.91083498,3121.4,3120.3,3.208]
[1768219635231,2.91083498,3121.4,3120.1,0.16045]
[1768219636332,2.91083498,3121.4,3119.7,3.18990521]
[1768219636538,2.91083498,3121.1,3119.6,1.596]
[1768219636730,2.91083498,3120.9,3119.6,1.596]
[1768219638935,2.91083498,3121.4,3119.6,1.596]
[1768219639136,0.90542469,3121.3,3119.8,4.42500015]
[1768219639330,0.90542469,3121.2,3119.8,4.42500015]
[1768219639528,0.90542469,3121.1,3119.9,3.18990521]
[1768219639832,2.91083498,3121.4,3119.9,3.18990521]
[1768219641035,2.91083498,3121.4,3119.9,3.35036521]
[1768219641234,2.91083498,3121.9,3119.9,3.35036521]
[1768219641436,2.91083498,3121.7,3119.9,3.35036521]
[1768219641634,3.81641523,3121.6,3119.9,3.35036521]
[1768219641832,3.81641523,3121.5,3119.9,3.35036521]
[1768219642033,0.90558025,3121.4,3119.9,3.35036521]
[1768219642745,0.90558025,3121.4,3120.0,3.35036521]
[1768219647739,2.91083498,3121.9,3120.3,3.18990521]
[1768219648049,0.90630213,3121.8,3120.3,3.35034521]